Cogmind - Beta 13 @@@ ROGUE MODE // 2024.03.20 @ 18:05:25 Player: Oldman Pu Result: Destroyed by G-34 Mercenary with Small Laser Performance ------------- Evolutions (0) 0 Regions Visited (1) 200 Robots Destroyed (18) 90 Value Destroyed (401) 401 Prototype IDs (0) 0 Alien Tech Used (0) 0 Bonus (0) 0 TOTAL SCORE: 691 Bonus ------- None Cogmind --------- Core Integrity 0/250 Matter 400/500 Energy 247/250 System Corruption 0% Temperature Cool (6) Movement Rolling (120) Ox2 Location -10/Materials Parts ------- > --- POWER (1) -------- Ion Engine > --- PROPULSION (2) --- Wheel Compact Wheel > --- UTILITY (2) ------ High-capacity Storage Unit High-capacity Matter Pod > --- WEAPON (2) ------- Assault Rifle Light Cannon > --- INVENTORY (20) --- Light Ion Engine Compact Wheel Compact Wheel Compact Wheel Compact Wheel Compact Wheel Heat Sink Large Storage Unit Humpback High-capacity Matter Pod (0) Light Assault Rifle Light Assault Rifle Peak State ------------ > --- POWER ------------ Light Ion Engine > --- PROPULSION ------- Compact Wheel Compact Wheel > --- UTILITY ---------- High-capacity Storage Unit High-capacity Matter Pod > --- WEAPON ----------- Assault Rifle Light Cannon > --- INVENTORY -------- Wheel Compact Wheel Compact Wheel Heat Sink Large Storage Unit Humpback High-capacity Matter Pod Light Assault Rifle Light Assault Rifle [Rating: 8] Favorites ----------- Power Light Ion Engine Engine Light Ion Engine Propulsion Wheel Wheel Wheel Utility High-capacity Matter Pod Storage High-capacity Matter Pod Weapon Assault Rifle Ballistic Gun Assault Rifle Ballistic Cannon Light Cannon Build | -11 -10 ------- Run | Yrd Mat Slots Evolved . | . . Power . | . . Propulsion . | . . Utility . | . . Weapon . | . . Parts Attached 21 | 6 15 Power 4 | 1 3 Engine 4 | 1 3 Core . | . . Reactor . | . . Propulsion 9 | 2 7 Treads . | . . Leg . | . . Wheel 9 | 2 7 Hover . | . . Flight . | . . Utility 4 | 1 3 Device . | . . Storage 4 | 1 3 Processor . | . . Hackware . | . . Protection . | . . Artifact . | . . Weapon 4 | 2 2 Energy Gun . | . . Energy Cannon . | . . Ballistic Gun 3 | 2 1 Ballistic Cannon 1 | . 1 Launcher . | . . Special Weapon . | . . Impact Weapon . | . . Slashing Weapon . | . . Piercing Weapon . | . . Special Melee Weapon . | . . Unidentified Prototypes . | . . Parts Lost 4 | . 4 Power 2 | . 2 Propulsion 2 | . 2 Utility . | . . Weapon . | . . Highest Loss Streak 2 | . 2 To Critical Strikes 1 | . 1 Average Slot Usage (%) 95 | . 95 Engine 12 | . 12 Wheel 25 | . 25 Storage 27 | . 27 Ballistic Gun 22 | . 22 Ballistic Cannon 5 | . 5 Naked Turns . | . . Heaviest Build 54 | 13 54 Greatest Support 32 | 20 32 Greatest Overweight (x) 4 | 4 3 Average Overweight (x) 1 | . 1 Largest Inventory Capacity 20 | 8 20 Average Capacity 17 | 7 18 Most Carried 13 | . 13 Average Carried 5 | . 6 Final Capacity 20 | 8 20 Final Carried 13 | . 13 Class Distribution -------------------- 100% | Mutant Dominant Class ---------------- Mutant | -10/Materials Resources | -11 -10 ----------- Run | Yrd Mat Matter Collected 890 | 195 695 Remotely . | . . Salvage Created 504 | . 504 Parts 40 | . 40 Haulers Intercepted 2 | . 2 Recyclers Shooed 2 | . 2 Parts Field Recycled . | . . Retrieved Matter . | . . Parts Self-Destructed . | . . Prevented . | . . Kills | -11 -10 ------- Run | Yrd Mat Combat Hostiles Destroyed 13 | . 13 Guns 7 | . 7 Cannons 5 | . 5 AOE 1 | . 1 Classes Destroyed 7 | . 7 Hauler 2 | . 2 Recycler 1 | . 1 Operator 1 | . 1 Watcher 1 | . 1 Swarmer 6 | . 6 Grunt 4 | . 4 Subdweller 3 | . 3 Best Kill Streak 3 | . 3 Combat Bots Only 3 | . 3 Max Kills in Single Turn 1 | . 1 Gunslinging . | . . Exploded 1 | . 1 Melee . | . . Uniques/NPCs Destroyed . | . . Combat | -11 -10 -------- Run | Yrd Mat Hostile Shots Fired 87 | . 87 Missed 19 | . 19 Damage Taken 850 | . 850 Core 253 | . 253 Absorbed by Shields . | . . Core Remaining (%) 100 | 100 . Volleys Fired 73 | . 73 Largest 2 | . 2 Hottest 55 | . 55 Shots Fired 146 | . 146 Gun 110 | . 110 Cannon 36 | . 36 Launcher . | . . Special . | . . Kinetic 146 | . 146 Thermal . | . . Explosive . | . . Electromagnetic . | . . Robot Hit Streak 15 | . 15 Robot Miss Streak 7 | . 7 Penetration Max . | . . Secondary Targets 1 | . 1 Max Gunslinging Chain 1 | . 1 Shots Hit Robots 91 | . 91 Core Hits 31 | . 31 Critical Kills . | . . Critical Parts Destroyed . | . . Critical Strikes 3 | . 3 Blast 3 | . 3 Melee Attacks . | . . Impact . | . . Slashing . | . . Piercing . | . . Sneak Attacks . | . . Combat Hostiles . | . . Follow-up Attacks . | . . Damage Inflicted 1300 | . 1300 Guns 822 | . 822 Cannons 314 | . 314 Explosions 164 | . 164 Melee . | . . Ramming . | . . Kinetic 1136 | . 1136 Thermal . | . . Explosive 164 | . 164 Electromagnetic . | . . Impact . | . . Slashing . | . . Piercing . | . . Highest Corruption . | . . Average Corruption . | . . Corruption Purged . | . . Corruption Blocked . | . . Overload Shots . | . . Overflow Damage 10 | . 10 Projectiles 10 | . 10 Explosions . | . . Melee . | . . Knockbacks 6 | . 6 Impact . | . . Kinetic 3 | . 3 Secondary 3 | . 3 Self-Inflicted Damage . | . . Shots . | . . Rammed . | . . Targets Rammed . | . . Kicked . | . . Crushed . | . . Highest Temperature 27 | . 27 Average Temperature 8 | . 8 Received Heat Transfer 279 | . 279 Siege Activations . | . . Robots Corrupted . | . . Combat Hostiles . | . . Parts Fried . | . . Impact Corruptions . | . . Robots Melted . | . . Combat Hostiles . | . . Parts Melted 2 | . 2 Heat Transferred . | . . Parts Sabotaged . | . . Parts Stolen . | . . Parts Stripped . | . . Power Chain Reactions . | . . Alert | -11 -10 ------- Run | Yrd Mat Peak Influence 243 | . 243 Initial . | . . Average 91 | . 96 Maximum Alert Level 1 | . 1 Low Security (%) 86 | 100 86 Level 1 13 | . 13 Level 2 . | . . Level 3 . | . . Level 4 . | . . Level 5 . | . . High Security . | . . Max Security . | . . Squads Dispatched 1 | . 1 Investigation 1 | . 1 Extermination . | . . Reinforcement . | . . Assault . | . . Garrison . | . . Intercept . | . . Searches Triggered . | . . Construction Impeded . | . . Haulers Reinforced . | . . Active Scanning Responses . | . . Cargo Convoy Interrupts . | . . Stealth | -11 -10 --------- Run | Yrd Mat Distress Signals . | . . Communications Jammed . | . . Distress Signals . | . . Times Spotted 26 | . 26 Peak Tracking Total 3 | . 3 Tactical Retreats 1 | . 1 Traps | -11 -10 ------- Run | Yrd Mat Traps Triggered 1 | . 1 Indirectly . | . . Trap Hack Attempts . | . . Triggered . | . . Disarmed . | . . Reprogrammed . | . . Reused . | . . Traps Extracted . | . . Installed . | . . Triggered . | . . Machines | -11 -10 ---------- Run | Yrd Mat Machines Disabled 3 | . 3 Max in Single Turn 2 | . 2 Machines Repaired . | . . Machines Dismantled . | . . Machines Sabotaged . | . . Overloaded Fab Kills . | . . Hacking | -11 -10 --------- Run | Yrd Mat Machines Accessed 4 | . 4 Terminals 4 | . 4 Fabricators . | . . Repair Stations . | . . Recycling Units . | . . Scanalyzers . | . . Garrison Access . | . . Total Hacks 7 | . 7 Successful 5 | . 5 Failed 2 | . 2 Catastrophic 1 | . 1 Database Lockouts . | . . Manual . | . . Terminals 7 | . 7 Fabricators . | . . Repair Stations . | . . Recycling Units . | . . Scanalyzers . | . . Garrison Access . | . . Terminal Hacks 5 | . 5 Record 1 | . 1 Branch Access Points 1 | . 1 Emergency Access Points 1 | . 1 Locate Traps 2 | . 2 Fabricator Hacks . | . . Repair Station Hacks . | . . Recycling Unit Hacks . | . . Scanalyzer . | . . Garrison Access Hacks . | . . Unauthorized Hacks . | . . Terminals . | . . Fabricators . | . . Repair Stations . | . . Recycling Units . | . . Scanalyzers . | . . Garrison Access . | . . Data Cores Recovered 1 | . 1 Used 1 | . 1 Hacking Detections 3 | . 3 Full Trace Events 1 | . 1 Feedback Events . | . . Feedback Blocked . | . . Robot Schematics Acquired . | . . Robots Built . | . . Authchips . | . . Time . | . . Total Robot Build Rating . | . . Part Schematics Acquired . | . . Parts Built . | . . Authchips . | . . Time . | . . Total Part Build Rating . | . . Parts Repaired . | . . Time . | . . Parts Recycled . | . . Recycled Matter . | . . Retrieved Matter . | . . Retrieved Components . | . . Parts Scanalyzed . | . . Part Schematics Acquired . | . . Parts Damaged . | . . Bothacking | -11 -10 ------------ Run | Yrd Mat Used RIF Installer . | . . Robots Hacked . | . . Non-combat . | . . Combat . | . . Robot Hacks Applied . | . . Relay Couplers Released . | . . Fabnet Peak Effective % . | . . Robots Rewired . | . . Allies Hacked . | . . Hacks Repelled . | . . Allies | -11 -10 -------- Run | Yrd Mat Total Allies . | . . Largest Group . | . . Highest-Rated Group . | . . Highest-Rated Ally . | . . Total Orders . | . . Ally Attacks . | . . Total Damage . | . . Kills . | . . Allies Corrupted . | . . Allies Melted . | . . Intel | -11 -10 ------- Run | Yrd Mat Robot Analysis Total . | . . Derelict Logs Recovered . | . . Drone Launches . | . . Drone Recoveries . | . . Exploration | -11 -10 ------------- Run | Yrd Mat Turns Passed 880 | 44 836 Spaces Moved 543 | 38 505 Core 12 | 12 . Treads . | . . Legs . | . . Wheels 531 | 26 505 Hover . | . . Flight . | . . Fastest Speed 50 | 50 80 Average Speed 107 | 91 109 Slowest Speed 250 | 250 145 Overloaded Moves . | . . Propulsion Burnouts . | . . Robots Hopped . | . . Cave-ins Triggered . | . . Exploration Rate (%) 26 | 3 50 Regions Visited 1 Branch Regions . Pre-discovered Areas . | . . Known Exits Taken . | . . Unknown Exits Taken 1 | 1 . Scrap Searched . | . . Spaces Dug . | . . Terrain Destroyed 17 | . 17 Melee . | . . Projectile . | . . AOE 17 | . 17 Terrain Rammed . | . . Walls Destroyed . | . . Machines Disabled . | . . Actions | -11 -10 --------- Run | Yrd Mat Total 692 | 43 649 Wait 41 | . 41 Move 542 | 37 505 Hop . | . . Pick Up 10 | . 10 Fast Attach 11 | 6 5 Attach 1 | . 1 Detach . | . . Swap 9 | . 9 Drop 5 | . 5 Fire 73 | . 73 Melee . | . . Ram . | . . Kick . | . . Crush . | . . Escape Stasis . | . . Rewire . | . . Trap . | . . Miscellaneous . | . . Route ------- -11/Scrapyard -10/Materials (discovered 3 exits: [*Mat x2] / Min) History --------- Turn | Location | Event 25 | -11/Scrapyard | Discovered new exit (range 15) 45 | -11/Scrapyard | Entered Materials 169 | -10/Materials | Discovered new exit (range 16) 280 | -10/Materials | Identified exit to Mines 310 | -10/Materials | Build established: Mutant 500 | -10/Materials | Derelicts attacked the area 562 | -10/Materials | Core integrity fell below 50% 693 | -10/Materials | Core integrity fell below 20% 706 | -10/Materials | Discovered new exit (range 16) 881 | -10/Materials | Destroyed by G-34 Mercenary with Small Laser Last Messages --------------- 00743_ U-05 Engineer lays Concrete. 00747_ Acquired 18 matter. 00778_ Acquired Com. Wheel. 00803_ K-01 Serf collects debris. 00830_ O-16 Technician: "IFF HANDSHAKE FAILED. SECURING TERMINAL." 00834_ O-16 Technician destroyed. 00837_ Acquired data core, extracted dynamic key. 00839_ Acquired 13 matter. 00843_ Connecting with Terminal... >>Query(Scanalyzer) Comprehensive suite of scanning and analysis tools for diagnosing faulty prototypes, examining the properties of self-developed [Derelict] components, and reverse engineering technology recovered from the surface battle site. Capable of producing schematics for components scanned, though multiple scans may be required and the deconstruction process may render the component itself useless. Advanced scanalyzers are equipped with a wider array of devices for more quickly and safely analyzing esoteric technologies. 00843_ ALERT: Suspicious activity at Terminal M007. Dispatching Investigation squad. Map ----- +----------------------------------------------------+ | | | | | | | | | | | | | | | | | | | | | | | | | | | | | | | | | ?????????????????????????????????????????? | | ???????????########??????????????????????? | | ???????????# #??????????????????????? | | ???????????# " #??????????????????????? | | ???????????# """ #????##########????????? | | ???????????# """ ###### #????????? | | ???????????# """ # g + #????????? | | ???????????# "" # g### """ #????????? | | ???????????# """ g #?# """"" #????????? | | ???????????# ""@# #?# """"" #????????? | | ???????????# """ # =#?# """"" #####????? | | ???????????# " #!=#?# """ # ###### | | ???????????# # #?# # < # | | ???????????######## T## # # | | ??????????????????# ######+##### + | | ??????????????????# #???# # | | ??????????????????# ##### # | | ??????????????????# # | | ??????????????????# ############ ###### | | ??????????????????# #???# # #????? | | ??????????????????# #???# """ # #????? | | ?????????????????? #???# """ + #????? | | ?????????????????? #???# """ # #????? | | ??????????????????# #???# # #????? | | ??????????????????# #???# # #????? | | ??????????????????? #???######## #????? | | ??????????????????? #??????????# #????? | | ??????????????????# #??????????# #????? | | ??????????????????# #??????????#! =#????? | | ??????????????????# #??????????#===#????? | | ??????????????????# #??????????#[**#????? | | ???????############ ############% [##???? | | ???????# ^ %= *=###+# | | ???????# [ == ! | +----------------------------------------------------+ Best States ------------- Heat Dissipation 25 Energy Generation 10 Energy Capacity 250 Matter Stores 466 Matter Capacity 500 Sight Range 16 Terrain Scan Density 10 Evasion (%) 50 Item Schematics ----------------- None Robot Schematics ------------------ None Fabricated ------------ Nothing Alien Tech Used ----------------- None Achievements -------------- None Challenges ------------ None Game ------ Seed LegTargetingChainsword Manual? 0 Play Time 00:11:18 Cumulative 179.0 hours Start 2024.03.20 @ 17:56:34 End 2024.03.20 @ 18:05:25 Sessions 1 Manual Loads 0 Difficulty Rogue Special Mode None Game No. 124 Rogue 112 Adventurer 12 Explorer 0 Win Type - Total 1 Types 1/0/0/0/0/0/0/0/0 Lore% 25 Gallery% 41 Achievement% 31 Wizard Run 0 Options --------- Layout 1 ASCII 0 Keyboard 0 Movement Mouse Keybinds 0 Fullscreen 1 Font 32/SmallcapsGlow Map View 77x35 Zoom Use 0% Tactical HUD 1 Map Filters NONE Filters NONE Steam 1 RUN: acf490e6-20e4-4367-8d60-ca6894dd6dbb